fUST/lending_fUST_20260106
["ID","MTS","AMOUNT","RATE_DAILY","PERIOD"]
[400508471,1767679846991,-255.8226987,0.00019668,2]
[400508472,1767679847001,-487.79354946,0.00019696,2]
[400508474,1767679847014,-18726.9,0.000197,3]
[400508476,1767679847023,-937.3636842,0.0001976,2]
[400508478,1767679847033,-5852.6684985,0.000198,7]
[400508480,1767679847042,-455.16447824,0.00019845,4]
[400508482,1767679847051,-455.16903612,0.00019845,4]
[400508484,1767679847061,-700.0,0.00019916,7]
[400508486,1767679847070,-695790.7145696,0.0002,2]
[400508489,1767679847087,-307.8364998,0.0002,2]
[400508491,1767679847099,-72332.95467972,0.0002,2]
[400508502,1767679847188,-496.47127164,0.00015533,2]
[400508504,1767679847198,-590.39141475,0.0002,2]
[400508515,1767679847288,-514.84070869,0.00016081,2]
[400508517,1767679847302,-533.88981491,0.00016629,2]
[400508519,1767679847311,-553.64373807,0.00017177,2]
[400508521,1767679847320,-574.12855637,0.00017725,2]
[400508523,1767679847331,-429.4756006,0.000178,3]
[400508525,1767679847340,-595.37131296,0.00018273,2]
[400508527,1767679847349,-26325.12198632,0.0002,2]
[400508530,1767679847360,-1354.47656471,0.0002,2]
[400508532,1767679847373,-604.0,0.0002,2]
[400508618,1767680124099,384.53596049,0.0003,120]
[400508619,1767680143063,-150.5,0.00011461,2]
[400508620,1767680431504,155.0,2e-05,2]
[400508669,1767681031774,-169.506,0.00011461,2]
[400508671,1767681031783,-581.0,0.00011461,2]
[400508673,1767681031793,-293.6681357,0.0001149,2]
[400508675,1767681031803,-300.0,0.00011587,2]
[400508677,1767681031813,-1200.0,0.00011587,2]
[400508679,1767681031822,-50000.0,0.00011588,2]
[400508681,1767681031831,-500.0,0.00011588,2]
[400508683,1767681031841,-394.92175155,0.00011589,2]
[400508685,1767681031850,-500.0,0.00011589,2]
[400508687,1767681031860,-500.0,0.00011589,2]
[400508689,1767681031869,-486.61793883,0.00011589,2]
[400508691,1767681031879,-1030.55580294,0.00011589,2]
[400508693,1767681031888,-1030.55580294,0.00011589,2]
[400508695,1767681031897,-1030.55580294,0.00011589,2]
[400508697,1767681031907,-1030.55580294,0.00011589,2]
[400508700,1767681031916,-1030.55580294,0.00011589,2]
[400508703,1767681031926,-1030.55580294,0.00011589,2]
[400508706,1767681031935,-1030.55580294,0.00011589,2]
[400508709,1767681031945,-1030.55580294,0.00011589,2]
[400508712,1767681031955,-500.0,0.00011589,2]
[400508715,1767681031965,-500.0,0.00011589,2]
[400508718,1767681031974,-500.0,0.00011589,2]
[400508720,1767681031984,-500.0,0.00011589,2]
[400508722,1767681031994,-500.0,0.00011589,2]
[400508724,1767681032003,-500.0,0.00011589,2]
[400508726,1767681032012,-500.0,0.00011589,2]
[400508728,1767681032022,-500.0,0.00011589,2]
[400508730,1767681032031,-500.0,0.00011589,2]
[400508744,1767681032204,-500.0,0.00011589,2]
[400508745,1767681032215,-500.0,0.00011589,2]
[400508746,1767681032225,-272.45774181,0.00011589,2]
[400508747,1767681032235,-500.0,0.00011589,2]
[400508748,1767681032245,-500.0,0.00011589,2]
[400508749,1767681032254,-500.0,0.00011589,2]
[400508750,1767681032263,-500.0,0.00011589,2]
[400508751,1767681032273,-196.5,0.00011589,2]
[400508752,1767681032283,-560.84774058,0.00011589,2]
[400508753,1767681032293,-500.0,0.00011589,2]
[400508754,1767681032304,-500.0,0.00011589,2]
[400508755,1767681032315,-500.0,0.00011589,2]
[400508756,1767681032324,-500.0,0.00011589,2]
[400508757,1767681032333,-576.62798908,0.00011589,2]
[400508758,1767681032343,-500.0,0.00011589,2]
[400508759,1767681032352,-500.0,0.00011589,2]
[400508760,1767681032361,-500.0,0.00011589,2]
[400508761,1767681032371,-500.0,0.00011589,2]
[400508762,1767681032382,-500.0,0.00011589,2]
[400508763,1767681032391,-500.0,0.00011589,2]
[400508764,1767681032401,-500.0,0.00011589,2]
[400508765,1767681032411,-1030.55580294,0.00011589,2]
[400508766,1767681032420,-500.0,0.00011589,2]
[400508767,1767681032430,-500.0,0.00011589,2]
[400508768,1767681032440,-500.0,0.00011589,2]
[400508769,1767681032449,-1082.08359308,0.00011589,2]
[400508770,1767681032458,-1082.08359308,0.00011589,2]
[400508771,1767681032468,-1082.08359308,0.00011589,2]
[400508772,1767681032477,-1082.08359308,0.00011589,2]
[400508773,1767681032486,-1082.08359308,0.00011589,2]
[400508774,1767681032495,-1082.08359308,0.00011589,2]
[400508775,1767681032505,-1082.08359308,0.00011589,2]
[400508776,1767681032514,-1082.08359308,0.00011589,2]
[400508777,1767681032523,-1168.65028052,0.00011589,2]
[400508778,1767681032532,-1168.65028052,0.00011589,2]
[400508779,1767681032542,-1168.65028052,0.00011589,2]
[400508780,1767681032551,-1168.65028052,0.00011589,2]
[400508781,1767681032560,-209630.18076559,0.0001159,2]
[400508782,1767681032682,-472.88121053,0.0001159,2]
[400508815,1767681037886,-15002.69008244,0.0001159,2]
[400508817,1767681037898,-551969.5393574,0.0001159,2]
[400508819,1767681037909,-1839.187663,0.0001159,2]
[400508821,1767681037921,-3921.72438981,0.0001159,2]
[400508823,1767681037932,-3664.0724537,0.0001159,2]
[400508825,1767681037943,-10005.0754213,0.0001159,2]
[400508828,1767681037965,-203494.64865623,0.0001159,2]
[400508830,1767681037976,-151.0,0.000117,2]
[400508832,1767681037986,-151.0,0.000117,2]
[400508834,1767681037995,-151.0,0.000117,2]
[400508835,1767681038005,-151.0,0.000117,2]
[400508836,1767681038014,-151.0,0.000117,2]
[400508837,1767681038024,-151.0,0.000117,2]
[400508838,1767681038034,-151.0,0.000117,2]
[400508839,1767681038045,-151.0,0.000117,2]
[400508840,1767681038055,-300.0,0.00011928,2]
[400508841,1767681038065,-300.0,0.00011928,2]
[400508842,1767681038075,-300.0,0.00011928,2]
[400508843,1767681038085,-300.0,0.00011928,2]
[400508844,1767681038095,-300.0,0.00011928,2]
[400508845,1767681038104,-300.0,0.00011928,2]
[400508846,1767681038115,-300.0,0.00011928,2]
[400508847,1767681038124,-300.0,0.00011928,2]
[400508848,1767681038135,-300.0,0.00011928,2]
[400508849,1767681038145,-300.0,0.00011928,2]
[400508850,1767681038155,-300.0,0.00011928,2]
[400508851,1767681038165,-300.0,0.00011928,2]
[400508852,1767681038176,-300.0,0.00011928,2]
[400508853,1767681038186,-300.0,0.00011928,2]
[400508854,1767681038196,-300.0,0.00011928,2]
[400508855,1767681038207,-600.0,0.00011928,2]
[400508856,1767681038216,-596.98,0.00012329,2]
[400508857,1767681038226,-497.49,0.00012329,2]
[400508858,1767681038236,-414.57,0.00012329,2]
[400508859,1767681038247,-345.48,0.00012329,2]
[400508860,1767681038256,-287.9,0.00012329,2]
[400508861,1767681038266,-239.91,0.00012329,2]
[400508862,1767681038276,-199.93,0.00012329,2]
[400508863,1767681038286,-166.61,0.00012329,2]
[400508864,1767681038296,-833.06,0.00012329,2]
[400508865,1767681038309,-9178.48393841,0.00012489,2]
[400508866,1767681038318,-420.0,0.00012726,2]
[400508867,1767681038328,-1680.0,0.00012746,2]
[400508868,1767681038338,-720.0,0.0001312,2]
[400508869,1767681038349,-500.0,0.00013273,2]
[400508870,1767681038359,-500.0,0.00013273,2]
[400508871,1767681038369,-497.04994014,0.00013273,2]
[400508872,1767681038379,-500.0,0.00013273,2]
[400508873,1767681038388,-361.15798132,0.00013273,2]
[400508874,1767681038398,-500.0,0.00013273,2]
[400508875,1767681038407,-500.0,0.00013273,2]
[400508876,1767681038416,-500.0,0.00013273,2]
[400508877,1767681038428,-346.52840013,0.0001349,2]
[400508878,1767681038438,-1041.66666667,0.00013588,2]
[400508879,1767681038448,-300.0,0.00013673,2]
[400508880,1767681038458,-563.41663894,0.00013699,2]
[400508881,1767681038467,-500.0,0.00013699,2]
[400508882,1767681038480,-500.0,0.00013699,2]
[400508883,1767681038490,-500.0,0.00013699,2]
[400508884,1767681038499,-500.0,0.00013699,2]
[400508885,1767681038509,-500.0,0.00013699,2]
[400508886,1767681038518,-500.0,0.00013699,2]
[400508887,1767681038527,-500.0,0.00013699,2]
[400508888,1767681038536,-1000.0,0.00013821,2]
[400508889,1767681038546,-834.48545738,0.00013821,2]
[400508890,1767681038555,-1000.0,0.00013821,2]
[400508891,1767681038564,-1000.0,0.00013821,2]
[400508892,1767681038574,-1000.0,0.00013821,2]
[400508893,1767681038583,-1000.0,0.00013821,2]
[400508894,1767681038593,-5000.0,0.0001386,2]
[400508895,1767681038602,-587.0,0.00013976,2]
[400508896,1767681038611,-2351.0,0.00014021,2]
[400508897,1767681038621,-1121.1573309,0.00014175,2]
[400508898,1767681038631,-2092.3146618,0.00014175,2]
[400508899,1767681038640,-600.0,0.00014221,2]
[400508900,1767681038649,-1000.0,0.00014247,2]
[400508901,1767681038658,-1000.0,0.00014247,2]
[400508902,1767681038668,-692.18736728,0.00014247,2]
[400508903,1767681038677,-511.34041447,0.00014247,2]
[400508904,1767681038686,-690.51130763,0.00014247,2]
[400508905,1767681038696,-533.7772006,0.00014247,2]
[400508906,1767681038706,-1000.0,0.00014247,2]
[400508907,1767681038715,-250.38477157,0.00014293,2]
[400508908,1767681038725,-1038.81751467,0.00014368,2]
[400508909,1767681038734,-1500.0,0.00014368,2]
[400508910,1767681038743,-1500.0,0.00014368,2]
[400508911,1767681038753,-1500.0,0.00014368,2]
[400508912,1767681038762,-1500.0,0.00014368,2]
[400508913,1767681038772,-3063.4719927,0.00014381,2]
[400508914,1767681038781,-864.0,0.00014432,2]
[400508915,1767681038791,-500.0,0.00014578,2]
[400508916,1767681038800,-500.0,0.00014715,2]
[400508917,1767681038813,-163.06318377,0.00014767,2]
[400508918,1767681038822,-886.81663952,0.00014768,2]
[400508919,1767681038833,-1500.0,0.00014795,2]
[400508920,1767681038842,-1500.0,0.00014795,2]
[400508921,1767681038852,-1506.10461326,0.00014795,2]
[400508922,1767681038861,-500.0,0.00014852,2]
[400508923,1767681038871,-100000.0,0.00014882,2]
[400508924,1767681038881,-453.98854619,0.000149,2]
[400508925,1767681038890,-453.98854619,0.000149,2]
[400508926,1767681038900,-453.98854619,0.000149,2]
[400508927,1767681038909,-524.85596201,0.00014916,2]
[400508928,1767681038919,-2000.0,0.00014916,2]
[400508929,1767681038929,-1000.0,0.00014916,2]
[400508930,1767681038938,-380.83045081,0.00014916,2]
[400508931,1767681038948,-600.0,0.00014989,2]
[400508932,1767681038958,-200.0,0.00014989,2]
[400508933,1767681038967,-1000.0,0.00015,2]
[400508934,1767681038976,-1159.7728086,0.00015,2]
[400508935,1767681038986,-165870.3848377,0.0001501,2]
[400508936,1767681038996,-800.0,0.00015068,2]
[400508937,1767681039005,-154.22403567,0.00015263,2]
[400508938,1767681039015,-505.12105821,0.00015342,2]
[400508939,1767681039024,-2000.0,0.00015342,2]
[400508940,1767681039034,-823.0,0.00015349,2]
[400508941,1767681039044,-1327.0,0.00015423,2]
[400508942,1767681039054,-1490.05554086,0.00015464,2]
[400508943,1767681039064,-399.38866455,0.0001549,2]
[400508944,1767681039075,-4034.6293236,0.00015776,3]
[400508945,1767681039085,-1000.0,0.00015876,2]
[400508946,1767681039096,-2500.0,0.0001589,2]
[400508947,1767681039106,-5000.0,0.00015939,2]
[400508948,1767681039115,-628.0,0.00016125,2]
[400508949,1767681039126,-2145.0,0.00016125,2]
[400508950,1767681039135,-1365.0,0.00016125,2]
[400508951,1767681039148,-301.015,0.00016125,2]
[400508952,1767681039162,-417.676,0.00016125,2]
[400508953,1767681039178,-801.09070688,0.00016164,2]
[400508954,1767681039188,-500.0,0.00016438,2]
[400508955,1767681039198,-594.0421836,0.00016438,2]
[400508956,1767681039208,-3000.0,0.00016438,2]
[400508957,1767681039217,-511719.96578393,0.00016731,2]
[400508958,1767681039227,-160.0,0.00016959,3]
[400508959,1767681039236,-3500.0,0.00016986,2]
[400508960,1767681039246,-5005.78665451,0.00017171,6]
[400508961,1767681039255,-1000.0,0.00017176,5]
[400508962,1767681039264,-2443.43307425,0.00017327,2]
[400508963,1767681039274,-1000.0,0.00017463,2]
[400508964,1767681039283,-244.0,0.00017463,2]
[400508965,1767681039294,-452.24892898,0.0001749,2]
[400508966,1767681039304,-4000.0,0.00017534,2]
[400508967,1767681039315,-30000.0,0.00017569,2]
[400508968,1767681039325,-151.0,0.00017569,2]
[400508969,1767681039334,-151.0,0.00017569,2]
[400508970,1767681039343,-151.0,0.00017569,2]
[400508971,1767681039352,-151.0,0.00017569,2]
[400508972,1767681039364,-151.0,0.00017569,2]
[400508973,1767681039386,-250.0,0.00017569,2]
[400508974,1767681039404,-151.0,0.00017569,2]
[400508975,1767681039414,-264.57870743,0.00017569,2]
[400508976,1767681039423,-299.09793067,0.00017569,2]
[400508977,1767681039433,-2398.4119403,0.00017569,2]
[400508978,1767681039444,-250.0,0.00017569,2]
[400508979,1767681039454,-250.0,0.00017569,2]
[400508980,1767681039464,-151.0,0.00017569,2]
[400508981,1767681039474,-250.0,0.00017569,2]
[400508982,1767681039483,-500.0,0.00017569,2]
[400508983,1767681039493,-250.0,0.00017569,2]
[400508984,1767681039502,-500.0,0.00017569,2]
[400508985,1767681039511,-250.0,0.00017569,2]
[400508986,1767681039520,-250.0,0.00017569,2]
[400508987,1767681039530,-500.0,0.00017569,2]
[400508988,1767681039539,-255.24985543,0.00017569,2]
[400508989,1767681039549,-500.0,0.00017569,2]
[400508990,1767681039559,-500.0,0.00017569,2]
[400508991,1767681039567,-500.0,0.00017569,2]
[400508992,1767681039577,-408.4156913,0.00017569,2]
[400508993,1767681039586,-500.0,0.00017569,2]
[400508994,1767681039595,-2030.29667201,0.00017569,2]
[400508995,1767681039606,-500.0,0.00017569,2]
[400508996,1767681039615,-500.0,0.00017569,2]
[400508998,1767681039625,-500.0,0.00017569,2]
[400509006,1767681039790,-496.47127164,0.00017569,2]
[400509007,1767681039800,-500.0,0.00017569,2]
[400509008,1767681039810,-286.0795197,0.00017569,2]
[400509010,1767681039830,-500.0,0.00017569,2]
[400509012,1767681039840,-500.0,0.00017569,2]
[400509014,1767681039850,-500.0,0.00017569,2]
[400509016,1767681039860,-500.0,0.00017569,2]
[400509018,1767681039870,-500.0,0.00017569,2]
[400509020,1767681039880,-500.0,0.00017569,2]
[400509022,1767681039890,-500.0,0.00017569,2]
[400509024,1767681039900,-500.0,0.00017569,2]
[400509025,1767681039910,-500.0,0.00017569,2]
[400509026,1767681039919,-1092.31123047,0.00017569,2]
[400509027,1767681039929,-500.0,0.00017569,2]
[400509028,1767681039939,-160.0,0.00017627,4]
[400509030,1767681039949,-2443.43307425,0.00017676,2]
[400509031,1767681039959,-2000.0,0.00017787,3]
[400509032,1767681039968,-2000.0,0.00017796,3]
[400509033,1767681039978,-74907.61084438,0.000178,3]
[400509034,1767681039988,-2000.0,0.00017804,3]
[400509035,1767681039997,-2000.0,0.00017813,3]
[400509036,1767681040007,-2000.0,0.00017822,3]
[400509037,1767681040016,-2000.0,0.00017831,3]
[400509038,1767681040026,-2000.0,0.0001784,3]
[400509039,1767681040036,-2000.0,0.00017848,3]
[400509040,1767681040045,-2000.0,0.00017857,3]
[400509041,1767681040055,-2443.43307425,0.00017858,2]
[400509042,1767681040065,-2000.0,0.00017866,3]
[400509043,1767681040075,-2000.0,0.00017875,3]
[400509044,1767681040085,-2000.0,0.00017884,3]
[400509045,1767681040095,-2000.0,0.00017892,3]
[400509046,1767681040106,-2000.0,0.00017901,3]
[400509048,1767681040115,-2000.0,0.0001791,3]
[400509049,1767681040125,-2000.0,0.00017919,3]
[400509050,1767681040134,-2000.0,0.00017928,3]
[400509051,1767681040145,-2000.0,0.00017936,3]
[400509052,1767681040154,-2000.0,0.00017945,3]
[400509053,1767681040164,-2000.0,0.00017954,3]
[400509054,1767681040173,-2000.0,0.00017963,3]
[400509055,1767681040182,-2000.0,0.00017972,3]
[400509056,1767681040191,-2000.0,0.0001798,3]
[400509057,1767681040201,-2000.0,0.00017989,3]
[400509058,1767681040210,-38000.0,0.00017998,3]
[400509059,1767681040219,-2000.0,0.00017998,3]
[400509060,1767681040228,-9999.37547311,0.00017998,3]
[400509061,1767681040238,-134246.18661091,0.00018,2]
[400509062,1767681040247,-5091.79020606,0.00018,2]
[400509063,1767681040257,-151.0,0.00018057,2]
[400509064,1767681040266,-4229.35353178,0.00018082,2]
[400509065,1767681040275,-31110.0,0.00018117,2]
[400509066,1767681040285,-2487.15318209,0.00018117,2]
[400509067,1767681040296,-514.84070869,0.00018117,2]
[400509068,1767681040309,-2443.43307425,0.0001817,2]
[400509069,1767681040319,-160.0,0.00018294,5]
[400509070,1767681040328,-777.0,0.000183,2]
[400509071,1767681040337,-670.0,0.00018329,2]
[400509072,1767681040347,-800.0,0.00018356,7]
[400509073,1767681040357,-670.0,0.00018368,2]
[400509074,1767681040366,-670.0,0.00018374,2]
[400509075,1767681040375,-151.0,0.00018381,2]
[400509076,1767681040387,-670.0,0.00018407,2]
[400509077,1767681040396,-2443.43307425,0.00018483,2]
[400509078,1767681040405,-5976.94398541,0.00018567,9]
[400509079,1767681040414,-670.0,0.00018572,2]
[400509080,1767681040423,-670.0,0.00018581,2]
[400509081,1767681040432,-670.0,0.00018601,2]
[400509082,1767681040442,-160.0,0.0001862,2]
[400509083,1767681040451,-32261.07,0.00018665,2]
[400509084,1767681040460,-2579.17784983,0.00018665,2]
[400509085,1767681040470,-533.88981491,0.00018665,2]
[400509086,1767681040479,-151.0,0.00018705,2]
[400509087,1767681040489,-670.0,0.0001875,2]
[400509088,1767681040498,-2443.43307425,0.00018838,2]
[400509089,1767681040508,-670.0,0.00018869,2]
[400509090,1767681040517,-303.45514023,0.000189,2]
[400509091,1767681040526,-303.45514023,0.000189,2]
[400509092,1767681040535,-670.0,0.00018914,2]
[400509093,1767681040544,-161.11030349,0.00018938,2]
[400509094,1767681040554,-921.85041725,0.00018952,2]
[400509095,1767681040563,-160.0,0.00018962,6]
[400509096,1767681040573,-7706.36793432,0.00018992,2]
[400509097,1767681040582,-1005.93816361,0.00019,2]
[400509098,1767681040591,-1777.927917,0.00019,2]
[400509099,1767681040601,-151.0,0.00019029,2]
[400509100,1767681040611,-303.45514023,0.00019089,2]
[400509101,1767681040620,-303.45514023,0.00019089,2]
[400509102,1767681040630,-2443.43307425,0.00019109,2]
[400509103,1767681040639,-628.0,0.00019125,2]
[400509104,1767681040648,-2145.0,0.00019125,2]
[400509105,1767681040658,-1365.0,0.00019125,2]
[400509106,1767681040667,-178.0,0.00019125,2]
[400509107,1767681040676,-417.0,0.00019125,2]
[400509108,1767681040686,-670.0,0.00019142,2]
[400509109,1767681040696,-672.34589544,0.00019178,2]
[400509110,1767681040705,-2689.38358175,0.00019178,2]
[400509111,1767681040715,-6045.06194588,0.00019178,2]
[400509112,1767681040724,-521.78640478,0.00019178,2]
[400509113,1767681040734,-2087.1456191,0.00019178,2]
[400509114,1767681040744,-4696.07764299,0.00019178,2]
[400509115,1767681040754,-8348.58247642,0.00019178,2]
[400509116,1767681040764,-191.004961,0.00019178,2]
[400509117,1767681040773,-151.0,0.00019178,2]
[400509118,1767681040783,-153.376724,0.00019178,2]
[400509119,1767681040793,-670.0,0.00019186,2]
[400509120,1767681040803,-241.74,0.000192,2]
[400509121,1767681040812,-228.3,0.000192,2]
[400509122,1767681040822,-32133.98,0.000192,2]
[400509123,1767681040831,-600.0,0.000192,2]
[400509124,1767681040841,-1000.0,0.0001921,2]
[400509125,1767681040850,-492.0,0.0001921,2]
[400509126,1767681040860,-21269.10163936,0.00019213,2]
[400509127,1767681040870,-2674.60743027,0.00019213,2]
[400509128,1767681040879,-553.64373807,0.00019213,2]
[400509129,1767681040888,-158.84566336,0.0001926,30]
[400509130,1767681040898,-303.45514023,0.00019278,2]
[400509131,1767681040907,-303.45514023,0.00019278,2]
[400509132,1767681040917,-160.14,0.00019279,2]
[400509133,1767681040926,-670.0,0.0001931,2]
[400509134,1767681040936,-170.73155875,0.00019313,30]
[400509135,1767681040946,-151.0,0.00019352,2]
[400509136,1767681040955,-600.0,0.000194,2]
[400509137,1767681040965,-2443.43307425,0.00019427,2]
[400509138,1767681040974,-800.0,0.00019452,7]
[400509139,1767681040984,-13031.34095959,0.00019464,2]
[400509140,1767681040993,-303.45514023,0.00019467,2]
[400509141,1767681041003,-303.45514023,0.00019467,2]
[400509142,1767681041011,-670.0,0.00019485,2]
[400509143,1767681041020,-505.1091934,0.0001949,2]
[400509144,1767681041029,-1000.0,0.000195,2]
[400509145,1767681041038,-268.01,0.00019564,2]
[400509146,1767681041047,-670.0,0.00019573,2]
[400509147,1767681041055,-2979.76520786,0.000196,2]
[400509148,1767681041064,-18726.9,0.000196,3]
[400509149,1767681041075,-600.0,0.000196,2]
[400509150,1767681041086,-670.0,0.00019626,2]
[400509151,1767681041095,-160.0,0.0001963,7]
[400509152,1767681041105,-215.90131744,0.0001963,5]
[400509153,1767681041115,-670.0,0.00019654,2]
[400509154,1767681041125,-303.45514023,0.00019656,2]
[400509155,1767681041134,-303.45514023,0.00019656,2]
[400509156,1767681041143,-2443.43307425,0.00019667,2]
[400509157,1767681041152,-170.73155875,0.00019673,30]
[400509158,1767681041162,-151.0,0.00019676,2]
[400509159,1767681041171,-670.0,0.00019683,2]
[400509160,1767681041180,-800.0,0.00019684,2]
[400509161,1767681041189,-670.0,0.00019689,2]
[400509162,1767681041199,-18726.9,0.000197,3]
[400509163,1767681041208,-800.0,0.00019725,2]
[400509164,1767681041216,-800.0,0.00019742,2]
[400509165,1767681041225,-800.0,0.00019743,2]
[400509166,1767681041235,-800.0,0.00019745,2]
[400509167,1767681041244,-2773.56790519,0.00019761,2]
[400509168,1767681041252,-574.12855637,0.00019761,2]
[400509169,1767681041262,-800.0,0.00019764,2]
[400509170,1767681041270,-800.0,0.0001977,2]
[400509171,1767681041280,-670.0,0.0001978,2]
[400509172,1767681041289,-601.19459609,0.000198,2]
[400509173,1767681041299,-670.0,0.00019811,2]
[400509174,1767681041309,-200.0,0.00019816,2]
[400509175,1767681041318,-670.0,0.0001982,2]
[400509176,1767681041327,-200.0,0.00019842,2]
[400509177,1767681041336,-175070.7211858,0.00019843,2]
[400509178,1767681041347,-409.150764,0.00019843,2]
[400509179,1767681041356,-409.150764,0.00019843,2]
[400509180,1767681041366,-409.150764,0.00019843,2]
[400509181,1767681041375,-409.150764,0.00019843,2]
[400509182,1767681041385,-156.305518,0.00019843,2]
[400509183,1767681041394,-154.885858,0.00019843,2]
[400509184,1767681041403,-209.143735,0.00019843,2]
[400509185,1767681041413,-169.766567,0.00019843,2]
[400509186,1767681041423,-151.0,0.00019843,2]
[400509187,1767681041432,-917.483929,0.00019843,2]
[400509188,1767681041442,-917.483929,0.00019843,2]
[400509189,1767681041450,-917.483929,0.00019843,2]
[400509190,1767681041459,-917.483929,0.00019843,2]
[400509191,1767681041469,-151.000005,0.00019843,2]
[400509192,1767681041479,-151.0,0.00019843,2]
[400509193,1767681041488,-151.0,0.00019843,2]
[400509194,1767681041497,-269.211237,0.00019843,2]
[400509195,1767681041507,-455.18271034,0.00019845,4]
[400509196,1767681041517,-455.18271034,0.00019845,4]
[400509197,1767681041527,-160.841376,0.00019856,2]
[400509198,1767681041536,-153.670085,0.00019856,2]
[400509199,1767681041546,-181.282421,0.00019868,2]
[400509200,1767681041556,-181.282421,0.00019868,2]
[400509201,1767681041565,-181.282421,0.00019868,2]
[400509202,1767681041574,-181.282421,0.00019868,2]
[400509203,1767681041583,-670.0,0.00019868,2]
[400509204,1767681041592,-800.0,0.00019876,2]
[400509205,1767681041601,-2443.43307428,0.00019878,2]
[400509206,1767681041610,-800.0,0.00019883,2]
[400509207,1767681041620,-670.0,0.00019933,2]
[400509208,1767681041630,-936.76219095,0.00019935,2]
[400509209,1767681041638,-800.0,0.00019941,2]
[400509210,1767681041647,-15542.3710548,0.00019954,2]
[400509211,1767681041656,-468.6818421,0.00019954,2]
[400509212,1767681041665,-200.0,0.00019955,2]
[400509213,1767681041675,-72609.9733136,0.00019956,2]
[400509214,1767681041684,-596.5931915,0.00019956,2]
[400509215,1767681041693,-151.0,0.00019956,2]
[400509216,1767681041702,-151.0,0.00019956,2]
[400509217,1767681041711,-212.54773642,0.00019999,2]
[400509218,1767681041720,-269478.01371407,0.0002,2]
[400509219,1767681041737,-1143.75644152,0.0002,2]
[400509233,1767681045970,-2592.0,0.0001386,2]
[400509234,1767681045980,-2591.0,0.00015939,2]
[400509235,1767681045989,-8463.44521921,0.0002,2]
[400509237,1767681117807,10000.0,0.00030137,120]
[400509239,1767681398756,1668.77,0.00030136,120]
[400509240,1767681399006,1668.77,0.00030136,120]
[400509241,1767681399243,1668.77,0.00030136,120]
[400509242,1767681399502,1668.77,0.00030136,120]
[400509243,1767681399736,1668.77,0.00030136,120]
[400509244,1767681399990,1668.77,0.00030136,120]
[400509245,1767681400264,1668.77,0.00030136,120]
[400509246,1767681400509,1668.77,0.00030136,120]
[400509247,1767681400778,1668.77,0.00030136,120]
[400509248,1767681401031,1668.77,0.00030136,120]
[400509249,1767681401290,1668.77,0.00030136,120]
[400509250,1767681401985,1668.77,0.00030136,120]
[400509251,1767681402257,1668.77,0.00030136,120]
[400509252,1767681402501,1668.77,0.00030136,120]
[400509253,1767681402766,1668.77,0.00030136,120]
[400509254,1767681403020,1668.77,0.00030136,120]
[400509255,1767681403265,1668.77,0.00030136,120]
[400509256,1767681403523,1668.77,0.00030136,120]
[400509257,1767681403917,1668.77,0.00030136,120]
[400509258,1767681404191,1668.77,0.00030136,120]
[400509259,1767681404461,1668.77,0.00030136,120]
[400509260,1767681404710,1668.77,0.00030136,120]
[400509261,1767681405003,1668.77,0.00030136,120]
[400509262,1767681405272,1668.86752281,0.00030136,120]
[400509275,1767682097447,160.0,0.000301,120]
[400509276,1767682098502,160.0,0.000301,120]
[400509304,1767682232285,-546.6086172,0.00013698,2]